bitfinex-derivatives/quotes_SOLF0:USTF0_20250325
["timestamp","ask_amount","ask_price","bid_price","bid_amount"]
[1742916543880,0.04796261,145.85,145.82,2.258e-05]
[1742916544576,6.8562,145.84,145.82,2.258e-05]
[1742916544773,0.04796261,145.85,145.82,2.258e-05]
[1742916545480,6.8564,145.83,145.82,2.258e-05]
[1742916548886,24.94,145.83,145.74,6.8602]
[1742916549083,24.94,145.83,145.75,24.94]
[1742916549285,6.8596,145.77,145.74,6.8602]
[1742916549474,6.8596,145.77,145.74,31.8002]
[1742916549679,24.94,145.83,145.74,24.94]
[1742916550083,0.05091353,145.8,145.77,0.04933037]
[1742916550581,6.8588,145.78,145.77,0.04933037]
[1742916559895,0.05091353,145.8,145.77,0.04933037]
[1742916560099,0.05091353,145.8,145.77,25.00933037]
[1742916561192,6.8588,145.78,145.77,25.00933037]
[1742916561392,6.8588,145.78,145.77,0.04933037]
[1742916563498,6.8588,145.78,145.77,3.037e-05]
[1742916563699,31.8188,145.78,145.77,3.037e-05]
[1742916563898,31.82,145.78,145.65,226.34]
[1742916564097,24.96,145.78,145.67,6.8637]
[1742916564692,6.8628,145.7,145.67,6.8637]
[1742916564896,24.96,145.78,145.63,471.72760019]
[1742916565097,0.05100061,145.7,145.67,0.04866998]
[1742916565296,13.7197,145.76,145.67,6.8637]
[1742916565495,0.04698494,145.7,145.67,0.05225677]
[1742916565693,13.7197,145.76,145.63,131.68760019]
[1742916565993,0.04698735,145.7,145.67,0.04331017]
[1742916566199,38.6759,145.8,145.68,24.96]
[1742916566398,0.05278045,145.7,145.69,6.863]
[1742916566598,6.8604,145.75,145.68,24.96]
[1742916566797,0.04579296,145.71,145.68,25.01085783]
[1742916566997,0.04579296,145.71,145.7,6.8623]
[1742916567402,0.04579296,145.71,145.68,25.01085783]
[1742916568000,0.04579296,145.71,145.7,6.8625]
[1742916572107,0.04579296,145.71,145.68,25.01085783]
[1742916573094,0.04579296,145.71,145.69,6.8628]
[1742916573300,0.04579296,145.71,145.68,25.01085783]
[1742916573604,382.96,145.83,145.69,10.25374603]
[1742916573802,6.8587,145.79,145.75,6.8599]
[1742916574004,6.8587,145.79,145.76,24.96]
[1742916574202,24.96,145.83,145.76,24.96]
[1742916574508,10.25374603,145.81,145.72,24.96]
[1742916574702,10.29895466,145.81,145.72,24.96]
[1742916574903,10.25374603,145.81,145.72,24.96]
[1742916575303,10.25374603,145.79,145.72,24.96]
[1742916575506,35.21374603,145.79,145.72,24.96]
[1742916575806,0.05162326,145.77,145.74,0.0476722]
[1742916576004,6.86,145.76,145.74,0.0476722]
[1742916576804,6.8602,145.75,145.74,0.0476722]
[1742916580807,0.05162326,145.77,145.74,0.0476722]
[1742916581301,6.8602,145.75,145.74,0.0476722]
[1742916582201,0.05162326,145.77,145.74,0.0476722]
[1742916582909,6.8599,145.76,145.74,0.0476722]
[1742916584613,6.8602,145.75,145.74,0.0476722]
[1742916589119,0.05162326,145.77,145.74,0.0476722]
[1742916589511,6.86,145.76,145.74,0.0476722]
[1742916589716,0.05162326,145.77,145.74,0.0476722]
[1742916590124,6.8602,145.75,145.74,0.0476722]
[1742916596533,6.91112326,145.77,145.74,0.0476722]
[1742916596731,0.05162326,145.77,145.74,0.0476722]
[1742916597128,0.05162326,145.77,145.76,6.8597]
[1742916597323,0.05162326,145.77,145.76,24.94]
[1742916598232,0.05162326,145.77,145.76,31.7997]
[1742916599036,0.05162326,145.77,145.76,24.94]
[1742916599529,6.91082326,145.77,145.76,24.94]
[1742916600331,0.05162326,145.77,145.76,24.94]
[1742916601033,0.05162326,145.77,145.76,31.7997]
[1742916601233,6.91082326,145.77,145.76,24.94]
[1742916603337,0.05162326,145.77,145.76,24.94]
[1742916603937,0.05162326,145.77,145.76,31.7997]
[1742916604534,6.91082326,145.77,145.76,24.94]
[1742916604930,0.05162326,145.77,145.74,0.0476722]
[1742916605138,6.8602,145.75,145.74,0.0476722]
[1742916608141,0.05162326,145.77,145.74,0.0476722]
[1742916608739,6.8602,145.75,145.74,0.0476722]
[1742916610446,6.86,145.76,145.74,0.0476722]
[1742916611243,6.8602,145.75,145.74,0.0476722]
[1742916616540,6.8599,145.76,145.74,0.0476722]
[1742916616741,0.05162326,145.77,145.75,24.94]
[1742916616938,0.05162326,145.77,145.76,6.8597]
[1742916617542,0.05162326,145.77,145.75,24.94]
[1742916618144,0.05162326,145.77,145.76,6.8597]
[1742916618345,34.93534658,145.82,145.75,24.94]
[1742916618652,28.07814658,145.82,145.75,24.94]
[1742916619051,6.8597,145.76,145.75,24.94]
[1742916619555,0.04891332,145.77,145.75,24.94]
[1742916619851,6.8584,145.79,145.76,6.8593]
[1742916620046,0.05074015,145.77,145.75,24.98539008]
[1742916620352,6.8581,145.8,145.77,6.8589]
[1742916620556,6.8581,145.8,145.75,24.98979673]
[1742916620755,0.05163799,145.8,145.75,24.98979673]
[1742916621046,6.8591,145.78,145.75,24.98979673]
[1742916621251,0.05163799,145.8,145.75,24.98979673]
[1742916621649,6.8585,145.79,145.75,24.98979673]
[1742916621848,0.05163799,145.8,145.75,24.98979673]
[1742916622348,6.8585,145.79,145.76,6.8595]
[1742916622748,6.90973799,145.8,145.77,6.859]
[1742916622950,0.05163799,145.8,145.77,6.859]
[1742916623253,6.90983799,145.8,145.77,6.859]
[1742916623449,0.05163799,145.8,145.76,6.8595]
[1742916623653,0.05163799,145.8,145.75,24.98979673]
[1742916624252,0.05163799,145.8,145.77,6.8592]
[1742916624950,6.8584,145.79,145.77,6.8592]
[1742916626659,6.8588,145.78,145.76,6.8595]
[1742916626856,0.05163799,145.8,145.75,0.04979673]
[1742916627051,0.05163799,145.8,145.76,24.94]
[1742916628256,6.859,145.78,145.76,24.94]
[1742916628752,6.859,145.78,145.76,31.7996]
[1742916628952,6.8586,145.79,145.76,24.94]
[1742916629357,6.8586,145.79,145.77,6.8592]
[1742916629558,6.8586,145.79,145.77,31.7992]
[1742916629947,6.8588,145.78,145.77,24.94]
[1742916630358,0.05163799,145.8,145.77,24.94]
[1742916630558,6.8586,145.79,145.77,24.94]
[1742916630857,0.05163799,145.8,145.77,24.94]
[1742916631256,0.05163799,145.8,145.79,6.8583]
[1742916632559,0.05163799,145.8,145.78,6.90842563]
[1742916632762,0.05163799,145.8,145.78,0.04992563]
[1742916632957,0.05163799,145.8,145.79,6.8583]
[1742916633563,0.05163799,145.8,145.78,6.90842563]
[1742916634160,0.05163799,145.8,145.78,0.04992563]
[1742916634562,0.05163799,145.8,145.79,6.8583]
[1742916635174,0.05163799,145.8,145.78,6.90862563]
[1742916635459,0.05163799,145.8,145.78,0.04992563]
[1742916635661,0.05163799,145.8,145.79,6.8583]
[1742916640469,17.63426,145.88,145.78,0.04992563]
[1742916640766,17.63426,145.88,145.78,10.25374603]
[1742916641063,17.63426,145.88,145.8,10.25374603]
[1742916641268,17.63426,145.88,145.81,24.92]
[1742916641465,0.04870479,145.86,145.83,0.05111765]
[1742916642062,6.8555,145.85,145.83,0.05111765]
[1742916643170,6.90400479,145.86,145.83,0.05111765]
[1742916643968,0.04870479,145.86,145.83,0.05111765]
[1742916644273,6.90410479,145.86,145.83,0.05111765]
[1742916644463,0.04870479,145.86,145.83,0.05111765]
[1742916644970,6.8558,145.85,145.83,0.05111765]
[1742916645271,0.04870479,145.86,145.83,0.05111765]
[1742916645465,6.8555,145.85,145.83,0.05111765]
[1742916645668,0.04870479,145.86,145.83,0.05111765]
[1742916646170,6.856,145.84,145.83,0.05111765]
[1742916648372,6.8557,145.85,145.83,0.05111765]
[1742916648567,0.04870479,145.86,145.83,0.05111765]
[1742916649074,6.856,145.84,145.83,0.05111765]
[1742916649268,0.04870479,145.86,145.83,0.05111765]
[1742916650074,6.856,145.84,145.83,0.05111765]
[1742916654171,6.8588,145.78,145.77,365.0]
[1742916654371,27.88800603,145.88,145.77,24.92]
[1742916654677,10.25374603,145.86,145.75,226.22]
[1742916654876,10.25374603,145.84,145.75,226.22]
[1742916655073,10.25374603,145.84,145.76,24.92]
[1742916655275,13.76519311,145.81,145.78,4.527e-05]
[1742916655879,6.8583,145.79,145.78,4.527e-05]
[1742916660383,0.04989311,145.81,145.78,4.527e-05]
[1742916660980,28.07814658,145.85,145.78,226.28004527]
[1742916661881,34.93394658,145.85,145.8,6.8576]
[1742916662182,0.04947842,145.84,145.81,24.92]
[1742916662385,0.04947842,145.84,145.81,31.82302485]
[1742916662684,0.04947842,145.84,145.81,24.96572485]
[1742916663387,0.04947842,145.84,145.82,6.8567]
[1742916663793,0.04947842,145.84,145.81,24.96572485]
[1742916664489,0.04947842,145.84,145.83,6.8564]
[1742916664877,0.04947842,145.84,145.81,24.96572485]
[1742916665982,0.04947842,145.84,145.83,6.8564]
[1742916668886,17.63426,145.88,145.87,6.8545]
[1742916669187,17.63426,145.88,145.87,31.7745]
[1742916670594,17.63426,145.88,145.87,24.92]
[1742916671782,6.8545,145.87,145.86,3.48e-05]
[1742916671986,24.49426,145.88,145.77,24.92]
[1742916672188,6.8582,145.8,145.77,24.92]
[1742916672395,13.7092,145.87,145.77,24.92]
[1742916672781,6.8583,145.8,145.77,24.92]
[1742916673292,0.05027936,145.8,145.77,24.96414051]
[1742916676095,0.05027936,145.8,145.79,6.8583]
[1742916676291,0.05027936,145.8,145.77,24.96414051]
[1742916677085,0.05027936,145.8,145.78,6.8585]
[1742916677291,0.05027936,145.8,145.77,24.96414051]
[1742916677494,24.92,145.91,145.77,24.96414051]
[1742916677796,24.92,145.91,145.77,389.92]
[1742916678394,6.8546,145.87,145.81,6.8573]
[1742916678598,0.04767278,145.85,145.83,0.0456526]
[1742916678798,24.92,145.91,145.84,24.92]
[1742916679097,6.90062377,145.85,145.84,24.92]
[1742916679294,6.8555,145.85,145.84,24.92]
[1742916679690,0.0496886,145.86,145.84,24.92]
[1742916681001,0.0496886,145.86,145.84,31.7757]
[1742916681409,0.0496886,145.86,145.84,24.92]
[1742916682394,0.0496886,145.86,145.73,226.22]
[1742916682595,8.75436,145.88,145.74,24.92]
[1742916682808,6.8572,145.82,145.74,24.92]
[1742916683709,0.04923848,145.79,145.77,0.04923648]
[1742916683895,6.8566,145.83,145.78,24.92]
[1742916684501,8.75436,145.88,145.78,24.92]
[1742916684707,6.8569,145.82,145.78,24.92]
[1742916685106,0.04962763,145.81,145.79,0.04445822]
[1742916685704,6.90702763,145.81,145.79,0.04445822]
[1742916686002,0.04962763,145.81,145.79,0.04445822]
[1742916686603,6.8578,145.8,145.79,0.04445822]
[1742916687602,0.04962763,145.81,145.79,0.04445822]
[1742916687905,8.75436,145.88,145.79,0.04445822]
[1742916688105,6.8552,145.86,145.79,0.04445822]
[1742916688305,8.75436,145.88,145.78,389.92]
[1742916688707,8.75436,145.88,145.81,6.8571]
[1742916688905,0.04358307,145.84,145.82,24.97093443]
[1742916689210,0.04358307,145.84,145.83,6.8564]
[1742916694415,8.75436,145.88,145.87,6.8545]
[1742916694721,75.16544645,145.98,145.87,24.92]
[1742916695521,0.05102849,145.93,145.91,0.04778763]
[1742916695920,6.8523,145.92,145.91,0.04778763]
[1742916700222,6.8523,145.92,145.91,24.94778763]
[1742916703428,6.8523,145.92,145.91,8.763e-05]
[1742916706230,6.8541,145.88,145.87,24.9]
[1742916706531,38.65502849,145.93,145.84,31.7559]
[1742916706532,38.604,145.93,145.84,31.7559]
[1742916706731,38.604,145.93,145.84,24.9]
[1742916706932,6.8553,145.86,145.84,24.9]
[1742916707121,38.604,145.93,145.84,24.9]
[1742916707428,6.8551,145.86,145.84,24.9]
[1742916707834,0.05047238,145.86,145.84,24.94631933]
[1742916708132,6.8555,145.85,145.84,0.04631933]
[1742916708333,0.05047238,145.86,145.84,0.04631933]
[1742916708530,6.8555,145.85,145.84,0.04631933]
[1742916710429,6.8555,145.85,145.84,1.933e-05]
[1742916716031,31.78,145.85,145.75,226.16]
[1742916716241,24.92,145.85,145.74,24.92]
[1742916716537,13.7121,145.84,145.69,226.2]
[1742916716726,29.70119785,145.84,145.69,226.2]
[1742916716926,15.98909785,145.84,145.7,24.92]
[1742916717129,0.05194077,145.78,145.7,6.8622]
[1742916717335,0.05194077,145.78,145.76,0.05168406]
[1742916717538,0.05194077,145.78,145.7,24.92]
[1742916717736,0.05194077,145.78,145.69,24.92]
[1742916717932,0.05194077,145.78,145.67,418.42431444]
[1742916718134,24.92,145.79,145.67,418.42431444]
[1742916718336,24.92,145.79,145.67,53.42431444]
[1742916718633,0.05208259,145.74,145.72,0.05196474]
[1742916718837,24.92,145.79,145.72,0.05196474]
[1742916719138,0.04669237,145.74,145.72,0.05196474]
[1742916719341,6.86,145.76,145.72,0.05196474]
[1742916719840,0.04782228,145.75,145.72,0.05196474]
[1742916721734,0.04782228,145.75,145.74,6.8607]
[1742916722734,0.04782228,145.75,145.72,0.05196474]
[1742916723236,0.04782228,145.75,145.73,6.8609]
[1742916723435,0.04782228,145.75,145.72,0.05196474]
[1742916723938,0.04782228,145.75,145.74,6.8607]
[1742916725535,24.92,145.84,145.77,6.859]
[1742916725839,24.92,145.84,145.75,24.92]
[1742916726140,6.8572,145.82,145.77,6.8591]
[1742916726542,24.92,145.84,145.77,6.8591]
[1742916726738,24.92,145.84,145.78,0.04408808]
[1742916726739,6.8583,145.79,145.78,0.04408808]
[1742916726941,0.04814058,145.81,145.67,365.0]
[1742916727147,24.92,145.8,145.68,24.92]
[1742916727740,24.92,145.8,145.73,6.8609]
[1742916727939,24.92,145.8,145.73,31.7809]
[1742916728238,0.04475531,145.78,145.75,0.05276553]
[1742916728439,6.90355531,145.78,145.75,0.05276553]
[1742916729438,0.04475531,145.78,145.75,0.05276553]
[1742916730444,6.90355531,145.78,145.75,0.05276553]
[1742916730744,0.04475531,145.78,145.75,0.05276553]
[1742916731846,6.8595,145.77,145.75,0.05276553]
[1742916732046,0.04475531,145.78,145.75,0.05276553]
[1742916732245,6.90475531,145.78,145.75,6.553e-05]
[1742916732551,0.04475531,145.78,145.67,24.92]
[1742916732748,24.92,145.8,145.67,24.92]
[1742916732949,6.8606,145.75,145.71,6.862]
[1742916733149,6.8606,145.75,145.71,31.782]
[1742916733344,24.92,145.8,145.71,24.92]
[1742916733542,0.05061672,145.74,145.72,0.04591163]
[1742916733846,24.92,145.8,145.72,0.04591163]
[1742916734046,24.92,145.8,145.72,6.90731163]
[1742916734241,0.0502116,145.77,145.72,0.04591163]
[1742916734545,6.8609,145.74,145.72,0.04591163]
[1742916735849,6.8611,145.73,145.72,0.04591163]
[1742916736047,24.92,145.8,145.72,0.04591163]
[1742916736247,0.04411201,145.74,145.72,0.04591163]
[1742916736446,24.92,145.8,145.72,0.04591163]
[1742916736650,0.04866525,145.74,145.72,0.04591163]
[1742916736838,0.0491084,145.74,145.72,0.04591163]
[1742916737149,6.8611,145.73,145.72,0.04591163]
[1742916739939,0.0491084,145.74,145.72,0.04591163]
[1742916740138,24.92,145.82,145.73,24.92]
[1742916740546,6.8601,145.76,145.73,24.92]
[1742916741451,6.8601,145.76,145.73,31.82809213]
[1742916741452,6.91200639,145.76,145.73,31.82809213]
[1742916741746,6.91200639,145.76,145.73,24.96709213]
[1742916741954,0.05190639,145.76,145.73,0.04709213]
[1742916743854,6.8607,145.74,145.73,0.04709213]
[1742916746950,6.8633,145.69,145.68,24.94]
[1742916747158,24.94,145.74,145.64,365.0]
[1742916747355,6.8652,145.65,145.62,6.866]
[1742916747561,6.8652,145.65,145.63,24.94]
[1742916748154,0.04566583,145.65,145.63,24.98933045]
[1742916749359,0.04566583,145.65,145.63,0.04933045]
[1742916749757,6.91076583,145.65,145.63,0.04933045]
[1742916749957,0.04566583,145.65,145.63,0.04933045]
[1742916750862,0.04566583,145.65,145.63,6.91503045]
[1742916751057,0.04566583,145.65,145.63,0.04933045]
[1742916752861,0.04566583,145.65,145.63,6.91513045]
[1742916753062,0.04566583,145.65,145.63,0.04933045]
[1742916753262,0.04566583,145.65,145.64,6.8654]
[1742916754365,0.04566583,145.65,145.63,6.91503045]
[1742916755867,0.04566583,145.65,145.63,0.04933045]
[1742916756868,6.8654,145.64,145.63,0.04933045]
[1742916757668,6.8654,145.64,145.63,3.045e-05]
[1742916757873,6.86,145.64,145.55,24.94]
[1742916758074,15.98909785,145.64,145.51,24.94]
[1742916758479,6.8698,145.55,145.51,24.94]
[1742916758672,6.8698,145.55,145.52,6.8707]
[1742916758872,6.8698,145.55,145.52,31.8307]
[1742916759074,6.91766817,145.55,145.52,31.8307]
[1742916760274,0.04786817,145.55,145.52,31.8307]
[1742916761269,0.04786817,145.55,145.52,6.8707]
[1742916761567,0.04786817,145.55,145.5,226.48]
[1742916761764,0.04786817,145.55,145.49,24.94]
[1742916761969,24.96,145.6,145.49,24.94]
[1742916762169,0.05215464,145.53,145.49,24.94]
[1742916762476,6.8695,145.56,145.49,24.94]
[1742916762775,0.05256267,145.52,145.49,24.94]
[1742916762972,6.8689,145.57,145.49,24.94]
[1742916763176,0.04836553,145.52,145.49,24.94]
[1742916763371,24.96,145.6,145.49,24.94]
[1742916763574,0.04579728,145.52,145.49,24.94]
[1742916763773,24.96,145.6,145.49,24.94]
[1742916764073,6.8688,145.57,145.52,6.8709]
[1742916764275,24.96,145.6,145.52,6.8709]
[1742916764276,0.04607698,145.56,145.52,6.8709]
[1742916764468,0.04607698,145.56,145.49,24.94]
[1742916764666,6.8703,145.54,145.49,24.94]
[1742916764967,24.96,145.6,145.49,24.94]
[1742916765168,0.05083046,145.53,145.51,6.8714]
[1742916765370,0.04417653,145.53,145.49,24.94]
[1742916765765,6.91497653,145.53,145.49,31.812]
[1742916766377,6.8711,145.52,145.48,6.8727]
[1742916766577,0.04417653,145.53,145.49,24.96]
[1742916767078,0.05115892,145.52,145.49,31.8322]
[1742916767379,40.94909785,145.6,145.49,31.8322]
[1742916767586,6.91782452,145.52,145.49,24.96]
[1742916767876,6.8713,145.52,145.49,24.96]
[1742916768086,25.00960275,145.56,145.44,226.54]
[1742916768087,6.8716,145.51,145.44,226.54]
[1742916768376,40.94909785,145.56,145.38,247.2922]
[1742916768581,0.04624955,145.49,145.46,6.8736]
[1742916768787,40.94909785,145.56,145.44,24.96]
[1742916768993,0.05177233,145.49,145.44,24.96]
[1742916769190,0.05177233,145.49,145.48,6.8729]
[1742916769585,0.05177233,145.49,145.44,24.96]
[1742916769988,0.05177233,145.49,145.47,6.873]
[1742916770987,0.05177233,145.49,145.48,6.8729]
[1742916771292,0.05177233,145.49,145.48,31.8329]
[1742916772991,0.05177233,145.49,145.48,24.96]
[1742916773789,6.92417233,145.49,145.48,24.96]
[1742916774087,0.05177233,145.49,145.43,6.875]
[1742916774387,6.8736,145.47,145.44,24.96]
[1742916774584,6.92582242,145.47,145.44,31.8346]
[1742916775191,6.8739,145.46,145.44,31.8346]
[1742916775686,0.05222242,145.47,145.44,24.96]
[1742916776291,6.8742,145.46,145.44,24.96]
[1742916776591,0.05222242,145.47,145.44,24.96]
[1742916776787,0.05222242,145.47,145.38,365.0]
[1742916777093,24.98,145.48,145.37,24.96]
[1742916777392,6.92172567,145.44,145.37,24.96]
[1742916778199,6.8754,145.43,145.39,6.8771]
[1742916778785,0.04662567,145.44,145.37,24.96]
[1742916779283,6.92152567,145.44,145.37,24.96]
[1742916779995,0.04662567,145.44,145.37,24.96]
[1742916781997,6.8761,145.42,145.37,24.96]
[1742916782197,13.7441,145.5,145.37,24.96]
[1742916782501,6.8761,145.42,145.38,6.8774]
[1742916782700,6.8761,145.42,145.37,24.96]
[1742916782899,24.98,145.48,145.38,24.98]
[1742916783194,13.7469,145.47,145.37,24.98]
[1742916783394,24.98,145.48,145.37,24.98]
[1742916783395,0.05196459,145.44,145.37,24.98]
[1742916783701,6.8755,145.43,145.4,6.8766]
[1742916783893,6.8755,145.43,145.41,24.98]
[1742916784087,0.05196459,145.44,145.41,24.98]
[1742916784494,0.05196459,145.44,145.41,31.8561]
[1742916784991,0.05196459,145.44,145.41,24.98]
[1742916785499,6.92706459,145.44,145.41,24.98]
[1742916785694,6.92706459,145.44,145.41,31.8559]
[1742916786093,0.05196459,145.44,145.41,24.98]
[1742916786289,6.8754,145.43,145.41,24.98]
[1742916788600,6.8754,145.43,145.41,31.8562]
[1742916788798,6.8754,145.43,145.41,24.98]
[1742916790791,6.8758,145.42,145.41,24.98]
[1742916792701,0.05196459,145.44,145.34,365.0]
[1742916792889,0.05196459,145.44,145.32,226.76]
[1742916792890,24.98,145.46,145.35,24.98]
[1742916793096,0.05145084,145.4,145.35,31.8587]
[1742916793291,6.8782,145.37,145.35,31.8587]
[1742916793502,0.05145084,145.4,145.35,31.8587]
[1742916794302,0.05145084,145.4,145.36,24.98]
[1742916795094,6.8779,145.38,145.36,31.8584]
[1742916795294,0.05145084,145.4,145.36,31.8584]
[1742916795495,0.05145084,145.4,145.36,24.98]
[1742916795794,0.05145084,145.4,145.37,6.8778]
[1742916796190,0.05145084,145.4,145.32,226.76]
[1742916796393,0.05145084,145.4,145.33,24.98]
[1742916796594,0.05145084,145.4,145.34,24.98]
[1742916796789,6.8783,145.37,145.34,31.8593]
[1742916797197,6.92385839,145.37,145.34,24.98]
[1742916797402,0.04555839,145.37,145.36,6.8786]
[1742916798408,0.04555839,145.37,145.35,6.8788]
[1742916798704,0.04555839,145.37,145.34,24.98]
[1742916798902,6.92395839,145.37,145.34,24.98]
[1742916799107,0.04555839,145.37,145.34,24.98]
[1742916799607,0.04555839,145.37,145.35,6.8787]
[1742916800202,0.04555839,145.37,145.34,31.8593]
[1742916800408,0.04555839,145.37,145.32,226.76]
[1742916800595,0.04555839,145.37,145.33,25.0]
[1742916800801,6.8793,145.35,145.33,25.0]
[1742916801803,0.04555839,145.37,145.33,25.0]
[1742916801804,6.8788,145.36,145.33,25.0]
[1742916802000,0.04555839,145.37,145.33,25.0]
[1742916802401,6.92395839,145.37,145.33,31.8798]
[1742916802602,0.04555839,145.37,145.33,6.8798]
[1742916802801,0.04555839,145.37,145.34,25.0]
[1742916803007,0.04555839,145.37,145.35,6.8788]
[1742916803707,0.04555839,145.37,145.34,25.0]
[1742916804204,0.04555839,145.37,145.36,6.8786]
[1742916805201,0.04555839,145.37,145.35,6.8788]
[1742916805403,0.04555839,145.37,145.34,25.0]
[1742916805802,6.92395839,145.37,145.34,25.0]
[1742916806201,0.04555839,145.37,145.34,25.0]
[1742916806404,0.04555839,145.37,145.34,31.8795]
[1742916806906,6.92395839,145.37,145.34,31.8795]
[1742916807605,6.8786,145.36,145.34,25.0]
[1742916807906,6.8786,145.36,145.33,6.8798]
[1742916808107,6.8786,145.36,145.34,25.02]
[1742916808307,6.8791,145.35,145.34,25.02]
[1742916808904,6.8796,145.34,145.33,25.02]
[1742916809207,25.02,145.42,145.33,25.02]
[1742916809508,6.879,145.36,145.33,25.02]
[1742916809803,6.879,145.36,145.33,31.8998]
[1742916809997,0.04460152,145.36,145.28,365.0]
[1742916810197,0.04460152,145.36,145.3,6.8812]
[1742916810398,6.92350152,145.36,145.29,25.26]
[1742916810603,0.04460152,145.36,145.29,25.26]
[1742916810906,6.8791,145.35,145.31,6.8809]
[1742916811112,0.04460152,145.36,145.29,25.26]
[1742916811508,0.04460152,145.36,145.22,365.0]
[1742916811805,41.24909785,145.38,145.23,25.26]
[1742916812006,0.05235608,145.3,145.25,6.8836]
[1742916812213,25.26,145.34,145.28,0.25339]
[1742916812508,0.0508874,145.29,145.28,0.25339]
[1742916812708,6.8819,145.29,145.28,0.25339]
[1742916815213,0.04821999,145.3,145.28,0.25339]
[1742916815910,6.8819,145.29,145.28,0.25339]
[1742916816215,0.04821999,145.3,145.28,0.25339]
[1742916816807,0.04821999,145.3,145.28,25.59339]
[1742916819410,0.04821999,145.3,145.29,6.8819]
[1742916819611,0.04821999,145.3,145.28,25.59339]
[1742916820011,0.04821999,145.3,145.28,0.25339]
[1742916821114,0.04821999,145.3,145.29,6.8819]
[1742916821813,0.04821999,145.3,145.29,32.2019]
[1742916822019,0.04821999,145.3,145.29,25.32]
[1742916823717,6.92961999,145.3,145.29,25.32]
[1742916824517,0.04821999,145.3,145.28,0.25339]
[1742916824919,6.92991999,145.3,145.28,0.25339]
[1742916825513,0.04821999,145.3,145.28,0.25339]
[1742916826721,6.8819,145.29,145.28,0.25339]
[1742916826917,0.04821999,145.3,145.21,6.8853]
[1742916827123,25.34,145.3,145.19,25.34]
[1742916827324,0.04845423,145.27,145.19,25.34]
[1742916829126,0.04845423,145.27,145.24,6.884]
[1742916829428,0.04845423,145.27,145.25,25.36]
[1742916830225,6.8833,145.26,145.25,25.36]
[1742916830423,0.04845423,145.27,145.25,25.36]
[1742916831032,6.93155423,145.27,145.25,25.36]
[1742916831430,0.04845423,145.27,145.25,25.36]
[1742916831929,6.93145423,145.27,145.25,25.36]
[1742916832832,0.04845423,145.27,145.25,32.2437]
[1742916833133,0.04845423,145.27,145.25,25.36]
[1742916833434,6.93135423,145.27,145.25,25.36]
[1742916835636,0.04845423,145.27,145.25,32.2435]
[1742916835830,0.04845423,145.27,145.25,25.36]
[1742916836131,6.93135423,145.27,145.25,25.36]
[1742916836533,6.93155423,145.27,145.25,25.36]
[1742916837024,0.04845423,145.27,145.26,6.8833]
[1742916840335,5.423e-05,145.27,145.26,6.8833]
[1742916841229,102.44817716,145.39,145.26,22.9908468]
[1742916841429,102.44817716,145.39,145.27,1.26364272]
[1742916841835,6.878,145.38,145.27,1.26364272]
[1742916842025,188.55242689,145.42,145.27,1.26364272]
[1742916842026,27.94041195,145.42,145.27,1.26364272]
[1742916842228,27.94041195,145.42,145.26,394.8772468]
[1742916842229,6.88,145.34,145.26,365.0]
[1742916842530,25.36,145.41,145.27,1.26365996]
[1742916842836,6.878,145.38,145.27,1.26365996]
[1742916843037,0.04758254,145.35,145.33,0.05039008]
[1742916843333,6.8782,145.37,145.34,25.34]
[1742916843732,0.04995182,145.37,145.34,25.39194477]
[1742916844533,6.8786,145.36,145.34,25.39194477]
[1742916844937,6.92825182,145.37,145.34,25.39194477]
[1742916845233,0.04995182,145.37,145.34,25.39194477]
[1742916845533,6.8791,145.35,145.34,0.05194477]
[1742916845733,0.04995182,145.37,145.23,227.12]
[1742916845934,6.8821,145.29,145.24,26.62387556]
[1742916846230,6.8821,145.29,145.24,25.36]
[1742916846430,6.8817,145.3,145.24,25.36]
[1742916846633,25.36,145.36,145.24,25.36]